[Event "November 21 Late 2023"]
[Site "https://www.chess.com"]
[Date "2023.11.21"]
[Round "9"]
[White "Saim, Mohamed Ilias"]
[Black "BM223344"]
[Result "0-1"]
[Board "70"]
[TimeControl "180+1"]
[WhiteFideId "7900465"]
[WhiteElo "2063"]
[BlackElo "2487"]
[WhiteTeam "ALG"]
[WhiteClock "0:00:00"]
[BlackClock "0:01:34"]

1. d4 {[%clk 0:03:00]}  Nf6 {[%clk 0:02:59]} 2. Nf3 {[%clk 0:03:01]}  g6 {[%clk 0:02:58]} 3. c4 {[%clk 0:03:01]}  Bg7 {[%clk 0:02:58]} 4. e3 {[%clk 0:03:01]}  d6 {[%clk 0:02:59]} 5. Be2 {[%clk 0:03:01]}  O-O {[%clk 0:03:00]} 6. O-O {[%clk 0:03:02]}  Nbd7 {[%clk 0:03:00]} 7. b4 {[%clk 0:03:01]}  a5 {[%clk 0:02:59]} 8. b5 {[%clk 0:03:01]}  e5 {[%clk 0:03:00]} 9. a4 {[%clk 0:03:01]}  exd4 {[%clk 0:02:58]} 10. exd4 {[%clk 0:02:58]}  c6 {[%clk 0:02:58]} 11. Ba3 {[%clk 0:02:54]}  Qc7 {[%clk 0:02:57]} 12. Nbd2 {[%clk 0:02:50]}  Re8 {[%clk 0:02:56]} 13. Rc1 {[%clk 0:02:49]}  Nf8 {[%clk 0:02:55]} 14. Re1 {[%clk 0:02:42]}  Bf5 {[%clk 0:02:54]} 15. Nh4 {[%clk 0:02:37]}  Bd7 {[%clk 0:02:50]} 16. Nhf3 {[%clk 0:02:30]}  Ne6 {[%clk 0:02:49]} 17. Qb3 {[%clk 0:02:11]}  Nf4 {[%clk 0:02:48]} 18. Bf1 {[%clk 0:02:07]}  Bf5 {[%clk 0:02:48]} 19. b6 {[%clk 0:01:47]}  Qd7 {[%clk 0:02:46]} 20. Rxe8+ {[%clk 0:01:39]}  Rxe8 {[%clk 0:02:43]} 21. Qc3 {[%clk 0:01:39]}  Ra8 {[%clk 0:02:33]} 22. Re1 {[%clk 0:01:37]}  h5 {[%clk 0:02:25]} 23. Qe3 {[%clk 0:01:35]}  Ne6 {[%clk 0:02:22]} 24. Nh4 {[%clk 0:01:24]}  Ng4 {[%clk 0:02:22]} 25. Qe2 {[%clk 0:01:03]}  Nxd4 {[%clk 0:02:22]} 26. Qe7 {[%clk 0:01:00]}  Rd8 {[%clk 0:02:15]} 27. Nxf5 {[%clk 0:00:57]}  Nxf5 {[%clk 0:02:15]} 28. Qxd7 {[%clk 0:00:55]}  Rxd7 {[%clk 0:02:15]} 29. Re8+ {[%clk 0:00:54]}  Kh7 {[%clk 0:02:15]} 30. Bd3 {[%clk 0:00:44]}  Bd4 {[%clk 0:02:09]} 31. Bxf5 {[%clk 0:00:36]}  gxf5 {[%clk 0:02:10]} 32. Re2 {[%clk 0:00:32]}  Bxb6 {[%clk 0:02:08]} 33. h3 {[%clk 0:00:30]}  Ne5 {[%clk 0:02:08]} 34. Ne4 {[%clk 0:00:27]}  fxe4 {[%clk 0:02:08]} 35. Rxe4 {[%clk 0:00:26]}  f5 {[%clk 0:02:08]} 36. Rh4 {[%clk 0:00:25]}  Kg6 {[%clk 0:02:08]} 37. Rf4 {[%clk 0:00:22]}  Nd3 {[%clk 0:02:07]} 38. Rf3 {[%clk 0:00:19]}  Ne1 {[%clk 0:01:59]} 39. Re3 {[%clk 0:00:16]}  Nc2 {[%clk 0:01:58]} 40. Re6+ {[%clk 0:00:12]}  Kf7 {[%clk 0:01:58]} 41. Rxd6 {[%clk 0:00:12]}  Rxd6 {[%clk 0:01:57]} 42. Bxd6 {[%clk 0:00:13]}  Nb4 {[%clk 0:01:55]} 43. Kf1 {[%clk 0:00:12]}  Ke6 {[%clk 0:01:52]} 44. c5 {[%clk 0:00:08]}  Ba7 {[%clk 0:01:48]} 45. Ke2 {[%clk 0:00:08]}  Kd5 {[%clk 0:01:48]} 46. Ke3 {[%clk 0:00:08]}  Bxc5+ {[%clk 0:01:49]} 47. Bxc5 {[%clk 0:00:07]}  Kxc5 {[%clk 0:01:50]} 48. Kf4 {[%clk 0:00:08]}  Kd4 {[%clk 0:01:50]} 49. Kxf5 {[%clk 0:00:08]}  c5 {[%clk 0:01:51]} 50. g4 {[%clk 0:00:08]}  hxg4 {[%clk 0:01:51]} 51. hxg4 {[%clk 0:00:08]}  c4 {[%clk 0:01:51]} 52. g5 {[%clk 0:00:08]}  Nd5 {[%clk 0:01:46]} 53. Ke6 {[%clk 0:00:05]}  Nc3 {[%clk 0:01:45]} 54. g6 {[%clk 0:00:05]}  Ne4 {[%clk 0:01:40]} 55. g7 {[%clk 0:00:03]}  c3 {[%clk 0:01:38]} 56. g8=Q {[%clk 0:00:00]}  c2 {[%clk 0:01:34]} 0-1

[Event "November 21 Late 2023"]
[Site "https://www.chess.com"]
[Date "2023.11.21"]
[Round "9"]
[White "Van Osch, Mees"]
[Black "Zarnicki, Pablo"]
[Result "0-1"]
[Board "72"]
[TimeControl "180+1"]
[WhiteFideId "1035967"]
[BlackFideId "100137"]
[WhiteElo "2324"]
[BlackElo "2468"]
[WhiteTeam "NED"]
[BlackTeam "ARG"]
[WhiteClock "0:00:00"]
[BlackClock "0:00:13"]

1. e4 {[%clk 0:03:00]}  a5 {[%clk 0:02:50]} 2. a4 {[%clk 0:02:58]}  e5 {[%clk 0:02:48]} 3. Nf3 {[%clk 0:02:55]}  Nf6 {[%clk 0:02:43]} 4. Nc3 {[%clk 0:02:48]}  Bb4 {[%clk 0:02:31]} 5. Bc4 {[%clk 0:02:45]}  Nxe4 {[%clk 0:02:27]} 6. Bxf7+ {[%clk 0:02:24]}  Kxf7 {[%clk 0:02:25]} 7. Nxe4 {[%clk 0:02:21]}  d5 {[%clk 0:02:23]} 8. Nxe5+ {[%clk 0:02:20]}  Ke6 {[%clk 0:02:14]} 9. Qh5 {[%clk 0:01:48]}  dxe4 {[%clk 0:02:12]} 10. c3 {[%clk 0:01:31]}  Bd6 {[%clk 0:02:05]} 11. Nc4 {[%clk 0:01:23]}  Nc6 {[%clk 0:01:55]} 12. O-O {[%clk 0:01:16]}  g6 {[%clk 0:01:39]} 13. Qg4+ {[%clk 0:01:07]}  Kf7 {[%clk 0:01:34]} 14. Qxe4 {[%clk 0:01:05]}  Re8 {[%clk 0:01:32]} 15. Qf3+ {[%clk 0:00:42]}  Qf6 {[%clk 0:01:27]} 16. Qxf6+ {[%clk 0:00:42]}  Kxf6 {[%clk 0:01:25]} 17. d4 {[%clk 0:00:42]}  Bf5 {[%clk 0:01:22]} 18. h4 {[%clk 0:00:33]}  Bd3 {[%clk 0:01:21]} 19. Bg5+ {[%clk 0:00:33]}  Kf7 {[%clk 0:01:20]} 20. Nxd6+ {[%clk 0:00:33]}  cxd6 {[%clk 0:01:20]} 21. Rfe1 {[%clk 0:00:31]}  Rxe1+ {[%clk 0:01:13]} 22. Rxe1 {[%clk 0:00:30]}  Re8 {[%clk 0:01:11]} 23. Rxe8 {[%clk 0:00:28]}  Kxe8 {[%clk 0:01:09]} 24. f3 {[%clk 0:00:21]}  Bc2 {[%clk 0:01:10]} 25. Kf2 {[%clk 0:00:22]}  Bxa4 {[%clk 0:01:07]} 26. Ke3 {[%clk 0:00:22]}  Bb3 {[%clk 0:01:05]} 27. g4 {[%clk 0:00:21]}  a4 {[%clk 0:01:01]} 28. h5 {[%clk 0:00:19]}  Na5 {[%clk 0:00:53]} 29. Ke4 {[%clk 0:00:16]}  gxh5 {[%clk 0:00:52]} 30. gxh5 {[%clk 0:00:16]}  Nc4 {[%clk 0:00:52]} 31. Bc1 {[%clk 0:00:16]}  b5 {[%clk 0:00:48]} 32. Kf5 {[%clk 0:00:13]}  Kf7 {[%clk 0:00:47]} 33. Kg5 {[%clk 0:00:11]}  Bd1 {[%clk 0:00:44]} 34. f4 {[%clk 0:00:04]}  d5 {[%clk 0:00:34]} 35. Kh6 {[%clk 0:00:02]}  Bc2 {[%clk 0:00:33]} 36. Kg5 {[%clk 0:00:01]}  Nd6 {[%clk 0:00:22]} 37. Kh6 {[%clk 0:00:02]}  Ne4 {[%clk 0:00:19]} 38. f5 {[%clk 0:00:02]}  Nd6 {[%clk 0:00:16]} 39. Kxh7 {[%clk 0:00:00]}  Nxf5 {[%clk 0:00:13]} 0-1

[Event "November 21 Late 2023"]
[Site "https://www.chess.com"]
[Date "2023.11.21"]
[Round "9"]
[White "Pace, Christopher"]
[Black "D`Arruda, Ricardo D."]
[Result "0-1"]
[Board "73"]
[TimeControl "180+1"]
[WhiteFideId "2610167"]
[BlackFideId "100692"]
[WhiteElo "2425"]
[BlackElo "2528"]
[WhiteTeam "CAN"]
[BlackTeam "ARG"]
[WhiteClock "0:00:20"]
[BlackClock "0:00:13"]

1. e4 {[%clk 0:02:53]}  c5 {[%clk 0:02:29]} 2. Nf3 {[%clk 0:02:51]}  Nc6 {[%clk 0:02:28]} 3. d4 {[%clk 0:02:51]}  cxd4 {[%clk 0:02:29]} 4. Nxd4 {[%clk 0:02:52]}  e5 {[%clk 0:02:29]} 5. Nb5 {[%clk 0:02:48]}  a6 {[%clk 0:02:29]} 6. Nd6+ {[%clk 0:02:47]}  Bxd6 {[%clk 0:02:29]} 7. Qxd6 {[%clk 0:02:48]}  Qe7 {[%clk 0:02:30]} 8. Qxe7+ {[%clk 0:02:45]}  Ngxe7 {[%clk 0:02:31]} 9. c3 {[%clk 0:02:27]}  d5 {[%clk 0:02:30]} 10. exd5 {[%clk 0:02:27]}  Nxd5 {[%clk 0:02:31]} 11. g3 {[%clk 0:02:24]}  Bf5 {[%clk 0:02:29]} 12. Bg2 {[%clk 0:02:23]}  O-O-O {[%clk 0:02:30]} 13. O-O {[%clk 0:02:23]}  Rhe8 {[%clk 0:02:29]} 14. Nd2 {[%clk 0:02:18]}  Kc7 {[%clk 0:02:26]} 15. Re1 {[%clk 0:02:16]}  f6 {[%clk 0:02:20]} 16. h3 {[%clk 0:02:07]}  h5 {[%clk 0:02:17]} 17. Nc4 {[%clk 0:02:02]}  b5 {[%clk 0:02:08]} 18. Ne3 {[%clk 0:02:03]}  Nxe3 {[%clk 0:02:08]} 19. Bxe3 {[%clk 0:02:04]}  Na5 {[%clk 0:02:08]} 20. a4 {[%clk 0:01:59]}  Nc4 {[%clk 0:01:30]} 21. Bc1 {[%clk 0:01:48]}  Bd7 {[%clk 0:01:24]} 22. axb5 {[%clk 0:01:47]}  axb5 {[%clk 0:01:23]} 23. Ra7+ {[%clk 0:01:42]}  Kb6 {[%clk 0:01:14]} 24. Rb7+ {[%clk 0:01:40]}  Ka6 {[%clk 0:01:09]} 25. b3 {[%clk 0:01:39]}  Nd6 {[%clk 0:01:08]} 26. Rc7 {[%clk 0:01:36]}  Kb6 {[%clk 0:01:08]} 27. Rxd7 {[%clk 0:01:25]}  Rxd7 {[%clk 0:01:08]} 28. Be3+ {[%clk 0:01:25]}  Kc7 {[%clk 0:01:04]} 29. Ra1 {[%clk 0:01:25]}  Nc8 {[%clk 0:01:03]} 30. Ra6 {[%clk 0:01:21]}  Rd6 {[%clk 0:01:00]} 31. Ra5 {[%clk 0:01:17]}  Rb6 {[%clk 0:00:34]} 32. Bxb6+ {[%clk 0:01:12]}  Kxb6 {[%clk 0:00:35]} 33. Ra8 {[%clk 0:01:09]}  Nd6 {[%clk 0:00:34]} 34. Rxe8 {[%clk 0:01:02]}  Nxe8 {[%clk 0:00:35]} 35. c4 {[%clk 0:01:03]}  bxc4 {[%clk 0:00:34]} 36. bxc4 {[%clk 0:01:04]}  Kc5 {[%clk 0:00:33]} 37. Bd5 {[%clk 0:01:04]}  Nd6 {[%clk 0:00:32]} 38. Kg2 {[%clk 0:01:00]}  Nxc4 {[%clk 0:00:23]} 39. Bf7 {[%clk 0:00:58]}  h4 {[%clk 0:00:23]} 40. gxh4 {[%clk 0:00:58]}  Kd4 {[%clk 0:00:22]} 41. Kg3 {[%clk 0:00:55]}  Nd6 {[%clk 0:00:22]} 42. Bg6 {[%clk 0:00:55]}  Ne4+ {[%clk 0:00:22]} 43. Kg2 {[%clk 0:00:52]}  Nc3 {[%clk 0:00:20]} 44. Kg3 {[%clk 0:00:48]}  Nd5 {[%clk 0:00:20]} 45. Kg4 {[%clk 0:00:44]}  Ne7 {[%clk 0:00:20]} 46. Bb1 {[%clk 0:00:44]}  e4 {[%clk 0:00:20]} 47. Kf4 {[%clk 0:00:39]}  Nd5+ {[%clk 0:00:19]} 48. Kf5 {[%clk 0:00:39]}  Ne7+ {[%clk 0:00:16]} 49. Ke6 {[%clk 0:00:39]}  Ng6 {[%clk 0:00:15]} 50. Kf7 {[%clk 0:00:35]}  Nf4 {[%clk 0:00:15]} 51. Kxg7 {[%clk 0:00:34]}  Nxh3 {[%clk 0:00:14]} 52. h5 {[%clk 0:00:33]}  Nxf2 {[%clk 0:00:14]} 53. Kxf6 {[%clk 0:00:30]}  e3 {[%clk 0:00:13]} 54. Bf5 {[%clk 0:00:20]}  e2 {[%clk 0:00:13]} 55. h6 {[%clk 0:00:20]}  e1=Q {[%clk 0:00:13]} 56. h7 {[%clk 0:00:20]}  Qe5+ {[%clk 0:00:13]} 0-1

[Event "November 21 Late 2023"]
[Site "https://www.chess.com"]
[Date "2023.11.21"]
[Round "9"]
[White "Omariev, Maksim"]
[Black "Gutkin, Ilya"]
[Result "0-1"]
[Board "74"]
[TimeControl "180+1"]
[WhiteFideId "4193423"]
[BlackFideId "16203470"]
[WhiteElo "2508"]
[BlackElo "2248"]
[WhiteTeam "RUS"]
[BlackTeam "GER"]
[WhiteClock "0:00:09"]
[BlackClock "0:00:08"]

1. e4 {[%clk 0:03:00]}  e5 {[%clk 0:02:58]} 2. Nf3 {[%clk 0:03:01]}  Nc6 {[%clk 0:02:59]} 3. Bb5 {[%clk 0:03:01]}  Nf6 {[%clk 0:02:59]} 4. O-O {[%clk 0:03:01]}  Nxe4 {[%clk 0:02:59]} 5. Re1 {[%clk 0:03:01]}  Nd6 {[%clk 0:02:59]} 6. Nxe5 {[%clk 0:03:01]}  Be7 {[%clk 0:02:59]} 7. Bd3 {[%clk 0:03:01]}  Nxe5 {[%clk 0:02:54]} 8. Rxe5 {[%clk 0:03:02]}  O-O {[%clk 0:02:55]} 9. Nc3 {[%clk 0:03:02]}  Bf6 {[%clk 0:02:54]} 10. Re3 {[%clk 0:03:03]}  Re8 {[%clk 0:02:53]} 11. b3 {[%clk 0:02:55]}  Rxe3 {[%clk 0:02:48]} 12. fxe3 {[%clk 0:02:56]}  Ne8 {[%clk 0:02:46]} 13. Bb2 {[%clk 0:02:53]}  d5 {[%clk 0:02:45]} 14. Qf3 {[%clk 0:02:22]}  c6 {[%clk 0:02:43]} 15. Rf1 {[%clk 0:02:22]}  Nd6 {[%clk 0:02:27]} 16. a4 {[%clk 0:02:16]}  Be6 {[%clk 0:02:23]} 17. Ba3 {[%clk 0:02:11]}  Bxc3 {[%clk 0:01:58]} 18. dxc3 {[%clk 0:02:12]}  Ne4 {[%clk 0:01:59]} 19. Bxe4 {[%clk 0:02:06]}  dxe4 {[%clk 0:01:59]} 20. Qxe4 {[%clk 0:02:07]}  Qd2 {[%clk 0:01:56]} 21. c4 {[%clk 0:01:50]}  Re8 {[%clk 0:01:51]} 22. Bc1 {[%clk 0:01:32]}  Qd7 {[%clk 0:01:46]} 23. Qd4 {[%clk 0:01:21]}  Qxd4 {[%clk 0:01:37]} 24. exd4 {[%clk 0:01:22]}  Bg4 {[%clk 0:01:37]} 25. h3 {[%clk 0:01:16]}  Bh5 {[%clk 0:01:35]} 26. Bf4 {[%clk 0:00:47]}  Re2 {[%clk 0:01:22]} 27. Rf2 {[%clk 0:00:46]}  Rxf2 {[%clk 0:01:21]} 28. Kxf2 {[%clk 0:00:46]}  Bd1 {[%clk 0:01:21]} 29. b4 {[%clk 0:00:32]}  Bxc2 {[%clk 0:01:20]} 30. a5 {[%clk 0:00:32]}  Bb3 {[%clk 0:01:15]} 31. c5 {[%clk 0:00:29]}  f6 {[%clk 0:00:59]} 32. Ke3 {[%clk 0:00:20]}  Kf7 {[%clk 0:00:59]} 33. Bd6 {[%clk 0:00:13]}  Ke6 {[%clk 0:00:57]} 34. a6 {[%clk 0:00:08]}  bxa6 {[%clk 0:00:56]} 35. Bb8 {[%clk 0:00:08]}  Kd5 {[%clk 0:00:48]} 36. Kd3 {[%clk 0:00:09]}  Bc4+ {[%clk 0:00:47]} 37. Kc3 {[%clk 0:00:09]}  Bf1 {[%clk 0:00:46]} 38. g3 {[%clk 0:00:08]}  Bxh3 {[%clk 0:00:46]} 39. Bxa7 {[%clk 0:00:09]}  Ke4 {[%clk 0:00:38]} 40. Bb8 {[%clk 0:00:08]}  Be6 {[%clk 0:00:38]} 41. Bd6 {[%clk 0:00:06]}  Bd5 {[%clk 0:00:34]} 42. Bf8 {[%clk 0:00:06]}  g5 {[%clk 0:00:33]} 43. Bg7 {[%clk 0:00:06]}  f5 {[%clk 0:00:26]} 44. Kd2 {[%clk 0:00:04]}  Kf3 {[%clk 0:00:25]} 45. Be5 {[%clk 0:00:04]}  h5 {[%clk 0:00:23]} 46. Bf6 {[%clk 0:00:02]}  Kxg3 {[%clk 0:00:18]} 47. Bxg5 {[%clk 0:00:02]}  h4 {[%clk 0:00:19]} 48. Ke3 {[%clk 0:00:03]}  h3 {[%clk 0:00:18]} 49. Bf4+ {[%clk 0:00:03]}  Kg2 {[%clk 0:00:18]} 50. Bh2 {[%clk 0:00:01]}  Kxh2 {[%clk 0:00:17]} 51. Kf2 {[%clk 0:00:02]}  f4 {[%clk 0:00:15]} 52. b5 {[%clk 0:00:03]}  axb5 {[%clk 0:00:15]} 53. Kf1 {[%clk 0:00:03]}  Kg3 {[%clk 0:00:15]} 54. Ke2 {[%clk 0:00:02]}  h2 {[%clk 0:00:15]} 55. Kd2 {[%clk 0:00:03]}  h1=Q {[%clk 0:00:15]} 56. Kc3 {[%clk 0:00:04]}  Qf3+ {[%clk 0:00:14]} 57. Kb4 {[%clk 0:00:05]}  Qb3+ {[%clk 0:00:14]} 58. Ka5 {[%clk 0:00:05]}  Qa4+ {[%clk 0:00:13]} 59. Kb6 {[%clk 0:00:06]}  b4 {[%clk 0:00:13]} 60. Kc7 {[%clk 0:00:07]}  b3 {[%clk 0:00:14]} 61. Kd6 {[%clk 0:00:07]}  b2 {[%clk 0:00:13]} 62. Ke5 {[%clk 0:00:08]}  b1=Q {[%clk 0:00:13]} 63. Kf6 {[%clk 0:00:09]}  Qe4 {[%clk 0:00:11]} 64. Kg5 {[%clk 0:00:09]}  Qa7 {[%clk 0:00:08]} 65. Kh6 {[%clk 0:00:09]}  Qah7+ {[%clk 0:00:07]} 66. Kg5 {[%clk 0:00:09]}  Qhg6# {[%clk 0:00:08]} 0-1

[Event "November 21 Late 2023"]
[Site "https://www.chess.com"]
[Date "2023.11.21"]
[Round "9"]
[White "Estrada Nieto, Julian"]
[Black "Seletsky, Grigory"]
[Result "1-0"]
[Board "75"]
[TimeControl "180+1"]
[WhiteFideId "5101018"]
[BlackFideId "14112191"]
[WhiteElo "2161"]
[BlackElo "2482"]
[WhiteTeam "ESP"]
[BlackTeam "UKR"]
[WhiteClock "0:00:19"]
[BlackClock "0:00:00"]

1. e4 {[%clk 0:03:00]}  e6 {[%clk 0:02:55]} 2. d4 {[%clk 0:03:00]}  d5 {[%clk 0:02:54]} 3. Nd2 {[%clk 0:03:01]}  Nf6 {[%clk 0:02:51]} 4. e5 {[%clk 0:02:59]}  Nfd7 {[%clk 0:02:52]} 5. Bd3 {[%clk 0:03:00]}  c5 {[%clk 0:02:52]} 6. c3 {[%clk 0:03:00]}  Nc6 {[%clk 0:02:52]} 7. Ne2 {[%clk 0:03:01]}  cxd4 {[%clk 0:02:52]} 8. cxd4 {[%clk 0:03:01]}  f6 {[%clk 0:02:53]} 9. exf6 {[%clk 0:03:01]}  Nxf6 {[%clk 0:02:51]} 10. Nf3 {[%clk 0:03:02]}  Bd6 {[%clk 0:02:49]} 11. O-O {[%clk 0:03:02]}  Qc7 {[%clk 0:02:49]} 12. Bg5 {[%clk 0:02:56]}  O-O {[%clk 0:02:45]} 13. h3 {[%clk 0:02:55]}  Nh5 {[%clk 0:02:19]} 14. Nc3 {[%clk 0:02:54]}  a6 {[%clk 0:02:17]} 15. Rc1 {[%clk 0:02:51]}  Nf4 {[%clk 0:02:10]} 16. Bb1 {[%clk 0:02:46]}  h6 {[%clk 0:01:57]} 17. Bxf4 {[%clk 0:02:46]}  Bxf4 {[%clk 0:01:56]} 18. Rc2 {[%clk 0:02:30]}  Bd7 {[%clk 0:01:52]} 19. Re2 {[%clk 0:02:30]}  Rae8 {[%clk 0:01:30]} 20. Qd3 {[%clk 0:02:30]}  Rf6 {[%clk 0:01:27]} 21. Rfe1 {[%clk 0:02:21]}  Ne7 {[%clk 0:00:54]} 22. Qh7+ {[%clk 0:01:58]}  Kf7 {[%clk 0:00:52]} 23. Ne5+ {[%clk 0:01:58]}  Bxe5 {[%clk 0:00:50]} 24. dxe5 {[%clk 0:01:51]}  Rf4 {[%clk 0:00:49]} 25. Re3 {[%clk 0:01:37]}  d4 {[%clk 0:00:37]} 26. Rg3 {[%clk 0:01:36]}  Rg8 {[%clk 0:00:38]} 27. Ne4 {[%clk 0:01:30]}  Kf8 {[%clk 0:00:20]} 28. Nd6 {[%clk 0:01:29]}  Qc5 {[%clk 0:00:15]} 29. Qd3 {[%clk 0:01:16]}  Bb5 {[%clk 0:00:14]} 30. Qd2 {[%clk 0:01:13]}  Rf7 {[%clk 0:00:11]} 31. Rc1 {[%clk 0:01:10]}  Qxe5 {[%clk 0:00:10]} 32. Nxf7 {[%clk 0:01:10]}  Kxf7 {[%clk 0:00:08]} 33. Rf3+ {[%clk 0:01:09]}  Nf5 {[%clk 0:00:08]} 34. g4 {[%clk 0:01:08]}  Bc6 {[%clk 0:00:08]} 35. Rf4 {[%clk 0:01:08]}  g5 {[%clk 0:00:07]} 36. Rxf5+ {[%clk 0:00:42]}  exf5 {[%clk 0:00:06]} 37. Bd3 {[%clk 0:00:28]}  Qd5 {[%clk 0:00:06]} 38. Bc4 {[%clk 0:00:28]}  Rd8 {[%clk 0:00:04]} 39. Qxd4 {[%clk 0:00:23]}  Kg6 {[%clk 0:00:03]} 40. Bxd5 {[%clk 0:00:22]}  Rxd5 {[%clk 0:00:04]} 41. Qc3 {[%clk 0:00:20]}  fxg4 {[%clk 0:00:02]} 42. hxg4 {[%clk 0:00:20]}  Rd6 {[%clk 0:00:01]} 43. Re1 {[%clk 0:00:20]}  Rf6 {[%clk 0:00:02]} 44. Re3 {[%clk 0:00:19]}  Rf4 {[%clk 0:00:02]} 45. Qd3+ {[%clk 0:00:19]}  Kf7 {[%clk 0:00:02]} 46. Qb3+ {[%clk 0:00:18]}  Kf6 {[%clk 0:00:00]} 47. f3 {[%clk 0:00:19]} 1-0

[Event "November 21 Late 2023"]
[Site "https://www.chess.com"]
[Date "2023.11.21"]
[Round "9"]
[White "Figorito, Nick"]
[Black "Martins, Bruno Andre Leite"]
[Result "1/2-1/2"]
[Board "76"]
[TimeControl "180+1"]
[WhiteFideId "30923689"]
[BlackFideId "1942255"]
[WhiteElo "2374"]
[BlackElo "2307"]
[WhiteTeam "USA"]
[BlackTeam "POR"]
[WhiteClock "0:00:04"]
[BlackClock "0:00:02"]

1. Nf3 {[%clk 0:03:00]}  Nf6 {[%clk 0:02:56]} 2. g3 {[%clk 0:03:01]}  g6 {[%clk 0:02:57]} 3. Bg2 {[%clk 0:03:01]}  Bg7 {[%clk 0:02:58]} 4. O-O {[%clk 0:03:01]}  O-O {[%clk 0:02:59]} 5. c4 {[%clk 0:03:02]}  c6 {[%clk 0:02:58]} 6. Nc3 {[%clk 0:03:02]}  d5 {[%clk 0:02:59]} 7. cxd5 {[%clk 0:03:03]}  cxd5 {[%clk 0:03:00]} 8. d4 {[%clk 0:03:04]}  Nc6 {[%clk 0:03:00]} 9. Ne5 {[%clk 0:03:04]}  Bd7 {[%clk 0:02:58]} 10. Nxc6 {[%clk 0:03:01]}  Bxc6 {[%clk 0:02:56]} 11. Bf4 {[%clk 0:03:01]}  e6 {[%clk 0:02:53]} 12. Be5 {[%clk 0:03:01]}  Bh6 {[%clk 0:02:52]} 13. Na4 {[%clk 0:02:37]}  Nd7 {[%clk 0:02:40]} 14. Bd6 {[%clk 0:02:36]}  Re8 {[%clk 0:02:38]} 15. Nc5 {[%clk 0:02:37]}  b6 {[%clk 0:02:34]} 16. Nxd7 {[%clk 0:02:35]}  Qxd7 {[%clk 0:02:35]} 17. Be5 {[%clk 0:02:35]}  Rac8 {[%clk 0:02:28]} 18. e3 {[%clk 0:02:30]}  Bb5 {[%clk 0:02:27]} 19. Re1 {[%clk 0:02:30]}  Bf8 {[%clk 0:02:26]} 20. a3 {[%clk 0:02:27]}  Ba4 {[%clk 0:02:25]} 21. Qf3 {[%clk 0:02:22]}  Bg7 {[%clk 0:02:19]} 22. Bxg7 {[%clk 0:02:21]}  Kxg7 {[%clk 0:02:20]} 23. Rac1 {[%clk 0:02:21]}  Bc2 {[%clk 0:02:10]} 24. Qf4 {[%clk 0:02:17]}  Qb5 {[%clk 0:02:06]} 25. h4 {[%clk 0:02:04]}  h5 {[%clk 0:01:56]} 26. b4 {[%clk 0:02:03]}  Qd3 {[%clk 0:01:48]} 27. Ra1 {[%clk 0:01:57]}  Rc3 {[%clk 0:01:46]} 28. Bf1 {[%clk 0:01:51]}  Qf5 {[%clk 0:01:45]} 29. Qxf5 {[%clk 0:01:25]}  Bxf5 {[%clk 0:01:46]} 30. Rec1 {[%clk 0:01:24]}  Rec8 {[%clk 0:01:45]} 31. Rxc3 {[%clk 0:01:23]}  Rxc3 {[%clk 0:01:46]} 32. Be2 {[%clk 0:01:07]}  Kf6 {[%clk 0:01:38]} 33. Kg2 {[%clk 0:01:03]}  Be4+ {[%clk 0:01:35]} 34. Bf3 {[%clk 0:01:02]}  Kf5 {[%clk 0:01:35]} 35. Bxe4+ {[%clk 0:01:01]}  Kxe4 {[%clk 0:01:36]} 36. Ra2 {[%clk 0:00:58]}  f6 {[%clk 0:01:20]} 37. b5 {[%clk 0:00:57]}  e5 {[%clk 0:01:20]} 38. dxe5 {[%clk 0:00:54]}  fxe5 {[%clk 0:01:20]} 39. a4 {[%clk 0:00:54]}  d4 {[%clk 0:01:21]} 40. exd4 {[%clk 0:00:54]}  exd4 {[%clk 0:01:22]} 41. a5 {[%clk 0:00:53]}  d3 {[%clk 0:01:16]} 42. axb6 {[%clk 0:00:49]}  axb6 {[%clk 0:01:17]} 43. Ra4+ {[%clk 0:00:44]}  Kd5 {[%clk 0:01:17]} 44. Kf3 {[%clk 0:00:43]}  d2+ {[%clk 0:01:10]} 45. Ke2 {[%clk 0:00:43]}  Rd3 {[%clk 0:01:11]} 46. Ra1 {[%clk 0:00:30]}  Kc4 {[%clk 0:00:50]} 47. Rd1 {[%clk 0:00:28]}  Rd6 {[%clk 0:00:47]} 48. Rxd2 {[%clk 0:00:27]}  Re6+ {[%clk 0:00:35]} 49. Kf3 {[%clk 0:00:26]}  Kxb5 {[%clk 0:00:36]} 50. Kf4 {[%clk 0:00:24]}  Kc4 {[%clk 0:00:35]} 51. f3 {[%clk 0:00:23]}  b5 {[%clk 0:00:35]} 52. g4 {[%clk 0:00:23]}  Rf6+ {[%clk 0:00:22]} 53. Kg5 {[%clk 0:00:17]}  Rxf3 {[%clk 0:00:22]} 54. gxh5 {[%clk 0:00:18]}  gxh5 {[%clk 0:00:19]} 55. Kxh5 {[%clk 0:00:18]}  Rg3 {[%clk 0:00:18]} 56. Kh6 {[%clk 0:00:16]}  Kc3 {[%clk 0:00:18]} 57. Rd8 {[%clk 0:00:10]}  b4 {[%clk 0:00:15]} 58. Rb8 {[%clk 0:00:10]}  b3 {[%clk 0:00:15]} 59. h5 {[%clk 0:00:09]}  Kd4 {[%clk 0:00:13]} 60. Kh7 {[%clk 0:00:08]}  Ke5 {[%clk 0:00:13]} 61. h6 {[%clk 0:00:07]}  Kf6 {[%clk 0:00:13]} 62. Kh8 {[%clk 0:00:06]}  Kf7 {[%clk 0:00:06]} 63. h7 {[%clk 0:00:05]}  Rc3 {[%clk 0:00:05]} 64. Rb7+ {[%clk 0:00:05]}  Kg6 {[%clk 0:00:05]} 65. Rb6+ {[%clk 0:00:04]}  Kf7 {[%clk 0:00:05]} 66. Rb7+ {[%clk 0:00:05]}  Kf6 {[%clk 0:00:06]} 67. Rb6+ {[%clk 0:00:04]}  Kg5 {[%clk 0:00:04]} 68. Rb5+ {[%clk 0:00:03]}  Kf6 {[%clk 0:00:01]} 69. Rb6+ {[%clk 0:00:03]}  Kf7 {[%clk 0:00:02]} 70. Rb7+ {[%clk 0:00:04]} 1/2-1/2